bitfinex/quotes_BTCUSD_20250730
["timestamp","ask_amount","ask_price","bid_price","bid_amount"]
[1753861916937,1.97257287,118380.0,118370.0,0.17912458]
[1753861917567,2.00317287,118380.0,118370.0,0.17912458]
[1753861918231,2.23484104,118380.0,118370.0,0.00048459]
[1753861918471,1.79734104,118380.0,118370.0,0.12908459]
[1753861918684,1.79734104,118380.0,118370.0,0.00048459]
[1753861918893,1.79734104,118380.0,118370.0,0.12908459]
[1753861919493,1.78412042,118380.0,118370.0,0.12908459]
[1753861921439,1.78411601,118380.0,118370.0,0.17908458]
[1753861921641,1.78411601,118380.0,118370.0,0.12908459]
[1753861922640,1.80686611,118380.0,118370.0,0.12908459]
[1753861926265,1.80686611,118380.0,118370.0,0.00048459]
[1753861929018,1.8068448,118380.0,118370.0,0.00048459]
[1753861930791,1.7915448,118380.0,118370.0,0.00048459]
[1753861932353,1.80773749,118380.0,118370.0,0.00048459]
[1753861932963,1.85853749,118380.0,118370.0,0.00048459]
[1753861934788,1.84233749,118380.0,118370.0,0.00048459]
[1753861935001,1.84230388,118380.0,118370.0,0.00048459]
[1753861935762,1.82700388,118380.0,118370.0,0.00048459]
[1753861937670,1.82700551,118380.0,118370.0,0.00048459]
[1753861937898,5.96787351,118380.0,118370.0,0.00048459]
[1753861940074,6.11392253,118380.0,118370.0,0.00048459]
[1753861940290,6.34425605,118380.0,118370.0,0.00048459]
[1753861940947,6.32152062,118380.0,118370.0,0.00048459]
[1753861941176,6.36702083,118380.0,118370.0,0.00048459]
[1753861941404,6.3455683,118380.0,118370.0,0.00048459]
[1753861941625,6.39106851,118380.0,118370.0,0.00048459]
[1753861941840,6.38606851,118380.0,118370.0,0.00048459]
[1753861942061,6.39406851,118380.0,118370.0,0.00048459]
[1753861942521,6.39206851,118380.0,118370.0,0.00048459]
[1753861942951,6.36473504,118380.0,118370.0,0.00048459]
[1753861945211,4.82707767,118370.0,118360.0,0.0004]
[1753861945446,6.1105484,118370.0,118360.0,0.0004]
[1753861945649,6.08650072,118370.0,118360.0,0.0004]
[1753861945858,6.08649035,118370.0,118360.0,0.0004]
[1753861946285,6.08749035,118370.0,118360.0,0.0004]
[1753861946487,5.85582218,118370.0,118360.0,0.0004]
[1753861946704,5.85882218,118370.0,118360.0,0.0004]
[1753861946908,5.62715401,118370.0,118360.0,0.0004]
[1753861947161,5.88422418,118370.0,118360.0,0.0004]
[1753861948544,5.88422406,118370.0,118360.0,0.0004]
[1753861948992,5.9100628,118370.0,118360.0,0.0004]
[1753861949719,5.65885463,118370.0,118360.0,0.0004]
[1753861949949,1.54918663,118370.0,118360.0,0.0004]
[1753861950188,5.8750228,118370.0,118360.0,0.0004]
[1753861950415,5.41846463,118370.0,118360.0,0.29294817]
[1753861950635,5.41846463,118370.0,118360.0,0.52461634]
[1753861950636,1.07387235,118370.0,118360.0,0.52461634]
[1753861951075,1.06542448,118370.0,118360.0,0.52461634]
[1753861951296,1.04270049,118370.0,118360.0,0.29294817]
[1753861952623,1.04270049,118370.0,118360.0,0.06128]
[1753861953078,1.04270049,118370.0,118360.0,0.11127999]
[1753861953290,1.12717779,118370.0,118360.0,0.11127999]
[1753861953930,1.12718368,118370.0,118360.0,0.11127999]
[1753861956546,1.12718508,118370.0,118360.0,0.11127999]
[1753861956755,1.12718578,118370.0,118360.0,0.11127999]
[1753861957997,1.12718578,118370.0,118360.0,0.06128]
[1753861958206,1.12718578,118370.0,118360.0,0.11127999]
[1753861958430,1.43606932,118370.0,118360.0,0.11127999]
[1753861963541,1.46095932,118370.0,118360.0,0.11127999]
[1753861964273,1.15207578,118370.0,118360.0,0.11127999]
[1753861964772,1.12718578,118370.0,118360.0,0.11127999]
[1753861965505,1.12718578,118370.0,118360.0,0.06128]
[1753861965725,1.12718578,118370.0,118360.0,0.11127999]
[1753861967525,1.12718671,118370.0,118360.0,0.11127999]
[1753861967960,1.12718671,118370.0,118360.0,0.06128]
[1753861968151,1.12718671,118370.0,118360.0,0.11127999]
[1753861969555,1.46173025,118370.0,118360.0,0.11127999]
[1753861969815,1.15284671,118370.0,118360.0,0.11127999]
[1753861970047,1.46173025,118370.0,118360.0,0.11127999]
[1753861970359,1.46173025,118370.0,118360.0,0.06128]
[1753861970610,1.46173025,118370.0,118360.0,0.11127999]
[1753861971073,1.46173025,118370.0,118360.0,0.10810999]
[1753861971291,1.46173025,118370.0,118360.0,0.08443999]
[1753861971529,1.46173282,118370.0,118360.0,0.08443999]
[1753861972018,1.46173282,118370.0,118360.0,0.10718999]
[1753861972203,1.15284928,118370.0,118360.0,0.11034999]
[1753861974365,1.15284928,118370.0,118360.0,0.06035]
[1753861974595,1.15284928,118370.0,118360.0,0.11034999]
[1753861974819,1.38453164,118370.0,118360.0,0.11034999]
[1753861975289,1.38751164,118370.0,118360.0,0.05039999]
[1753861975533,1.38751164,118370.0,118360.0,0.0004]
[1753861975769,1.38751164,118370.0,118360.0,0.05039999]
[1753861976481,1.38751164,118370.0,118360.0,0.06579999]
[1753861976691,1.38453164,118370.0,118360.0,0.06579999]
[1753861977387,1.51305164,118370.0,118360.0,0.06579999]
[1753861978464,1.53578058,118370.0,118360.0,0.06579999]
[1753861978689,1.53578058,118370.0,118360.0,0.0158]
[1753861978916,1.53578058,118370.0,118360.0,0.06579999]
[1753861979347,1.53758127,118370.0,118360.0,0.06579999]
[1753861980500,1.53758127,118370.0,118360.0,0.08159999]
[1753861980729,1.53758127,118370.0,118360.0,0.10434999]
[1753861981666,1.49666918,118370.0,118360.0,0.08159999]
[1753861981912,1.53763248,118370.0,118360.0,0.08159999]
[1753861982298,1.30595012,118370.0,118360.0,0.08159999]
[1753861982529,1.51394248,118370.0,118360.0,0.10951999]
[1753861982776,1.51197248,118370.0,118360.0,0.10951999]
[1753861983470,1.38345248,118370.0,118360.0,0.10951999]
[1753861984852,1.40911248,118370.0,118360.0,0.10951999]
[1753861987842,1.40911248,118370.0,118360.0,0.03361]
[1753861988044,1.40911248,118370.0,118360.0,0.06579999]
[1753861988670,1.40912102,118370.0,118360.0,0.06579999]
[1753861989062,1.40912102,118370.0,118360.0,0.0158]
[1753861989261,1.40912102,118370.0,118360.0,0.06579999]
[1753861989468,1.53764102,118370.0,118360.0,0.06579999]
[1753861991331,1.39333375,118370.0,118360.0,0.06579999]
[1753861991543,1.40913815,118370.0,118360.0,0.06579999]
[1753861991959,1.40913815,118370.0,118360.0,0.0158]
[1753861992171,1.40913815,118370.0,118360.0,0.06579999]
[1753861992706,1.40913815,118370.0,118360.0,0.0158]
[1753861992907,1.40913815,118370.0,118360.0,0.06579999]
[1753861995579,1.40913815,118370.0,118360.0,0.08219999]
[1753861995782,1.40913815,118370.0,118360.0,0.10494999]
[1753861996208,1.40913815,118370.0,118360.0,0.05495]
[1753861996372,1.40913815,118370.0,118360.0,0.10494999]
[1753862000251,1.17745579,118370.0,118360.0,0.10494999]
[1753862000453,1.40913815,118370.0,118360.0,0.10494999]
[1753862001509,1.17745579,118370.0,118360.0,0.10494999]
[1753862001712,1.45993815,118370.0,118360.0,0.10701999]
[1753862001913,1.40913815,118370.0,118360.0,0.10701999]
[1753862003049,1.17745579,118370.0,118360.0,0.10701999]
[1753862003264,1.40913815,118370.0,118360.0,0.10701999]
[1753862005002,1.40913815,118370.0,118360.0,0.0322]
[1753862005224,1.40913815,118370.0,118360.0,0.08219999]
[1753862005888,1.40913815,118370.0,118360.0,0.0322]
[1753862006180,1.40913815,118370.0,118360.0,0.08219999]
[1753862011876,1.45993815,118370.0,118360.0,0.08219999]
[1753862012096,1.40913815,118370.0,118360.0,0.10480999]
[1753862014257,1.17745579,118370.0,118360.0,0.10480999]
[1753862014479,1.40913815,118370.0,118360.0,0.10480999]
[1753862017399,1.40913815,118370.0,118360.0,0.05481]
[1753862017638,1.40913815,118370.0,118360.0,0.10480999]
[1753862017962,1.17745579,118370.0,118360.0,0.10480999]
[1753862018173,1.40913815,118370.0,118360.0,0.05481]
[1753862018383,1.40913815,118370.0,118360.0,0.10480999]
[1753862018860,1.40913879,118370.0,118360.0,0.10480999]
[1753862019371,1.40913879,118370.0,118360.0,0.05481]
[1753862019532,1.40913879,118370.0,118360.0,0.10480999]
[1753862020862,1.40913879,118370.0,118360.0,0.05481]
[1753862021072,1.40913879,118370.0,118360.0,0.10480999]
[1753862021536,1.4091392,118370.0,118360.0,0.08219999]
[1753862022026,1.4091392,118370.0,118360.0,0.0322]
[1753862022239,1.4091392,118370.0,118360.0,0.08219999]
[1753862022689,1.4091392,118370.0,118360.0,0.23328999]
[1753862024357,1.40913998,118370.0,118360.0,0.23328999]
[1753862025282,1.40913998,118370.0,118360.0,0.18329]
[1753862025480,1.40913998,118370.0,118360.0,0.23328999]
[1753862026247,1.40913998,118370.0,118360.0,0.18329]
[1753862026455,1.40913998,118370.0,118360.0,0.23328999]
[1753862027086,1.40914407,118370.0,118360.0,0.23328999]
[1753862027511,1.40914407,118370.0,118360.0,0.21067999]
[1753862029251,1.40914407,118370.0,118360.0,0.16068]
[1753862029441,1.40914407,118370.0,118360.0,0.21067999]
[1753862029794,1.40914407,118370.0,118360.0,0.23421999]
[1753862030717,1.40914407,118370.0,118360.0,0.23936999]
[1753862031683,1.40914423,118370.0,118360.0,0.23936999]
[1753862032643,1.40914417,118370.0,118360.0,0.23628999]
[1753862032914,1.40914417,118370.0,118360.0,0.0322]
[1753862033104,1.40914417,118370.0,118360.0,0.14424]
[1753862037993,1.4091446,118370.0,118360.0,0.14424]
[1753862038209,1.4091446,118370.0,118360.0,0.12884]
[1753862038210,1.67426181,118370.0,118360.0,0.12884]
[1753862038428,6.03986144,118370.0,118360.0,0.0004]
[1753862038653,6.23536165,118370.0,118360.0,0.0004]
[1753862038868,6.2050668,118370.0,118360.0,0.0004]
[1753862041324,6.0037083,118370.0,118360.0,0.0004]
[1753862042215,5.74002594,118370.0,118360.0,0.0004]
[1753862042446,5.9717083,118370.0,118360.0,0.0004]
[1753862042671,5.6401283,118370.0,118360.0,0.0004]
[1753862042919,1.6589003,118370.0,118360.0,0.02394]
[1753862043171,1.6589003,118370.0,118360.0,0.0004]
[1753862043610,1.6589003,118370.0,118360.0,0.0166]
[1753862044294,1.61340009,118370.0,118360.0,0.0166]
[1753862045211,1.59166953,118370.0,118360.0,0.0166]
[1753862045395,1.38171074,118370.0,118360.0,0.0166]
[1753862045579,1.6133931,118370.0,118360.0,0.0166]
[1753862046186,1.38171074,118370.0,118360.0,0.0166]
[1753862046386,1.6133931,118370.0,118360.0,0.0166]
[1753862047791,1.38171074,118370.0,118360.0,0.0166]
[1753862048078,1.6133931,118370.0,118360.0,0.0166]
[1753862049361,1.38171074,118370.0,118360.0,0.0166]
[1753862049762,1.25327074,118370.0,118360.0,0.04014]
[1753862049974,1.63612823,118370.0,118360.0,0.06129]
[1753862050178,1.36133685,118370.0,118360.0,0.29297236]
[1753862050386,1.33101299,118370.0,118360.0,0.29297236]
[1753862050619,1.33101299,118370.0,118360.0,0.06129]
[1753862050825,1.33101047,118370.0,118360.0,0.06129]
[1753862052789,1.56269283,118370.0,118360.0,0.06129]
[1753862053934,1.57591517,118370.0,118360.0,0.06129]
[1753862054380,1.57806517,118370.0,118360.0,0.06129]
[1753862054980,1.60115517,118370.0,118360.0,0.06129]
[1753862056784,1.60115517,118370.0,118360.0,0.05821]
[1753862057042,1.60429517,118370.0,118360.0,0.0004]
[1753862057476,1.63461903,118370.0,118360.0,0.0004]
[1753862059229,1.63462099,118370.0,118360.0,0.0004]
[1753862060198,1.63148099,118370.0,118360.0,0.0155]
[1753862060687,1.39979863,118370.0,118360.0,0.0306]
[1753862060934,1.63148099,118370.0,118360.0,0.05547]
[1753862062855,1.63148099,118370.0,118360.0,0.0306]
[1753862064158,1.63148242,118370.0,118360.0,0.0306]
[1753862066749,1.39980006,118370.0,118360.0,0.0155]
[1753862066959,1.63446279,118370.0,118360.0,0.0004]
[1753862067165,1.63446279,118370.0,118360.0,0.016]
[1753862067416,1.63148279,118370.0,118360.0,0.016]
[1753862071584,1.58068279,118370.0,118360.0,0.016]
[1753862072224,1.58068279,118370.0,118360.0,0.05647]
[1753862074185,1.58081212,118370.0,118360.0,0.05647]
[1753862074405,1.55807699,118370.0,118360.0,0.05647]
[1753862075073,1.55017497,118370.0,118360.0,0.05647]
[1753862075289,1.55808221,118370.0,118360.0,0.05647]
[1753862079001,1.32639985,118370.0,118360.0,0.05647]
[1753862079205,1.32639985,118370.0,118360.0,0.06163]
[1753862079429,1.55808221,118370.0,118360.0,0.06163]
[1753862081194,1.55810276,118370.0,118360.0,0.06163]
[1753862081573,1.55760509,118370.0,118360.0,0.06163]
[1753862082154,1.55760509,118370.0,118360.0,0.0585]
[1753862083154,1.55761176,118370.0,118360.0,0.0316]
[1753862085560,1.3259294,118370.0,118360.0,0.016]
[1753862085992,1.55761176,118370.0,118360.0,0.016]
[1753862086202,1.3259294,118370.0,118360.0,0.016]
[1753862086657,1.55761176,118370.0,118360.0,0.016]
[1753862088482,1.55761178,118370.0,118360.0,0.016]
[1753862088916,1.55761178,118370.0,118360.0,0.0314]
[1753862089335,1.32592942,118370.0,118360.0,0.05439]
[1753862089549,1.55761178,118370.0,118360.0,0.05934]
[1753862090859,1.32592942,118370.0,118360.0,0.05934]
[1753862091071,1.53452178,118370.0,118360.0,0.05934]
[1753862091327,0.91930798,118370.0,118360.0,0.34102235]
[1753862091551,0.94209156,118370.0,118360.0,0.70134471]
[1753862091778,0.56332019,118370.0,118360.0,0.70134471]
[1753862091994,0.46564884,118370.0,118360.0,0.87032071]
[1753862092223,0.78286497,118370.0,118360.0,0.87032071]
[1753862092684,0.78286497,118370.0,118360.0,0.70134471]
[1753862093130,0.79131241,118370.0,118360.0,0.70134471]
[1753862093358,0.78286497,118370.0,118360.0,0.70134471]
[1753862095125,0.79131248,118370.0,118360.0,0.70134471]
[1753862095352,0.78286497,118370.0,118360.0,0.70134471]
[1753862096203,0.79131241,118370.0,118360.0,0.70134471]
[1753862096442,0.79131241,118370.0,118360.0,0.46966235]
[1753862096443,0.78286497,118370.0,118360.0,0.46966235]
[1753862096645,0.86734227,118370.0,118360.0,0.46966235]
[1753862096871,0.78286497,118370.0,118360.0,0.46966235]
[1753862097081,0.79131241,118370.0,118360.0,0.46966235]
[1753862097630,0.80820779,118370.0,118360.0,0.46966235]
[1753862097853,0.80820779,118370.0,118360.0,0.23797999]
[1753862098066,1.24344039,118370.0,118360.0,0.23797999]
[1753862098274,1.32791769,118370.0,118360.0,0.23501999]
[1753862098923,1.09623533,118370.0,118360.0,0.23501999]
[1753862099983,1.09623533,118370.0,118360.0,0.23797999]
[1753862100350,0.9032836,118370.0,118360.0,0.23797999]
[1753862100595,0.9032836,118370.0,118360.0,0.23978839]
[1753862100596,0.87793985,118370.0,118360.0,0.23978839]
[1753862100799,0.88423757,118370.0,118360.0,0.23978839]
[1753862101215,0.79975112,118370.0,118360.0,0.23978839]
[1753862102062,0.80819892,118370.0,118360.0,0.23978839]
[1753862104644,0.80806959,118370.0,118360.0,0.23978839]
[1753862106625,0.80806535,118370.0,118360.0,0.23978839]
[1753862107423,0.79961755,118370.0,118360.0,0.23978839]
[1753862107624,0.89731654,118370.0,118360.0,0.23978839]
[1753862109074,0.90576441,118370.0,118360.0,0.23978839]
[1753862109301,0.89729863,118370.0,118360.0,0.23978839]
[1753862110947,0.88885091,118370.0,118360.0,0.23978839]
[1753862111117,0.89729863,118370.0,118360.0,0.23978839]
[1753862111326,0.89729856,118370.0,118360.0,0.23978839]
[1753862111955,0.90574636,118370.0,118360.0,0.23978839]
[1753862112157,0.90575076,118370.0,118360.0,0.23978839]
[1753862112355,0.81282566,118370.0,118360.0,0.23978839]
[1753862112532,0.82127338,118370.0,118360.0,0.23978839]
[1753862113108,0.82972125,118370.0,118360.0,0.23978839]
[1753862113315,0.82127338,118370.0,118360.0,0.23978839]
[1753862115215,0.81282566,118370.0,118360.0,0.23978839]
[1753862115427,0.80437801,118370.0,118360.0,0.23978839]
[1753862115629,0.81282573,118370.0,118360.0,0.23978839]
[1753862117643,0.89730303,118370.0,118360.0,0.23978839]
[1753862118190,0.9318909,118370.0,118360.0,0.23978839]
[1753862118615,0.92344303,118370.0,118360.0,0.23978839]
[1753862118824,0.92344303,118370.0,118360.0,0.47145048]
[1753862119040,1.15510512,118370.0,118360.0,0.23978839]
[1753862119719,1.16355299,118370.0,118360.0,0.23978839]
[1753862119924,1.15510512,118370.0,118360.0,0.23978839]
[1753862121855,1.16355299,118370.0,118360.0,0.23978839]
[1753862122054,1.15510512,118370.0,118360.0,0.23978839]
[1753862122530,1.16355292,118370.0,118360.0,0.23978839]
[1753862123167,1.18633679,118370.0,118360.0,0.23978839]
[1753862123379,1.19478466,118370.0,118360.0,0.23978839]
[1753862124247,1.1804488,118370.0,118360.0,0.23682839]
[1753862124512,1.19478466,118370.0,118360.0,0.23682839]
[1753862124945,1.17200079,118370.0,118360.0,0.23682839]
[1753862125162,1.16355292,118370.0,118360.0,0.23682839]
[1753862125590,1.15761935,118370.0,118360.0,0.23682839]
[1753862125831,1.16359046,118370.0,118360.0,0.23682839]
[1753862126267,0.93192837,118370.0,118360.0,0.23682839]
[1753862126710,1.16359046,118370.0,118360.0,0.23682839]
[1753862127336,1.17203833,118370.0,118360.0,0.23682839]
[1753862127553,0.94037624,118370.0,118360.0,0.23682839]
[1753862127753,1.17203833,118370.0,118360.0,0.23682839]
[1753862128391,1.17209221,118370.0,118360.0,0.23682839]
[1753862129057,1.18054029,118370.0,118360.0,0.19624839]
[1753862129241,1.20332409,118370.0,118360.0,0.19624839]
[1753862129489,1.36383824,118370.0,118360.0,0.18064839]
[1753862129733,1.18642879,118370.0,118360.0,0.18064839]
[1753862130204,1.18642879,118370.0,118360.0,0.19674839]
[1753862130650,1.19487687,118370.0,118360.0,0.19674839]
[1753862131623,1.43443023,118370.0,118360.0,0.18064839]
[1753862134088,1.42598222,118370.0,118360.0,0.18064839]
[1753862134306,1.42611155,118370.0,118360.0,0.18064839]
[1753862136041,1.42310155,118370.0,118360.0,0.18064839]
[1753862136543,1.40724002,118370.0,118360.0,0.18064839]
[1753862136787,1.4230923,118370.0,118360.0,0.18064839]
[1753862141885,1.39931388,118370.0,118360.0,0.18064839]
[1753862142108,1.42309088,118370.0,118360.0,0.18064839]
[1753862142770,1.19142879,118370.0,118360.0,0.18064839]
[1753862143013,1.42309088,118370.0,118360.0,0.18064839]
[1753862144731,1.42309073,118370.0,118360.0,0.18064839]
[1753862147647,1.42308963,118370.0,118360.0,0.18064839]
[1753862150321,1.42308088,118370.0,118360.0,0.18064839]
[1753862150538,1.19141879,118370.0,118360.0,0.18064839]
[1753862150693,1.42308088,118370.0,118360.0,0.18064839]
[1753862150914,1.42308096,118370.0,118360.0,0.18064839]
[1753862152164,1.423078,118370.0,118360.0,0.18064839]
[1753862153182,1.42307441,118370.0,118360.0,0.18064839]
[1753862154396,5.53274241,118370.0,118360.0,0.18064839]
[1753862155739,5.52680078,118370.0,118360.0,0.18064839]
[1753862155973,5.53274146,118370.0,118360.0,0.18064839]
[1753862156398,1.67393555,118370.0,118360.0,0.0022084]
[1753862156624,5.81580572,118370.0,118360.0,0.1306084]
[1753862156849,5.79302185,118370.0,118360.0,0.1306084]
[1753862158558,5.92142185,118370.0,118360.0,0.1306084]
[1753862159555,5.93464453,118370.0,118360.0,0.1306084]
[1753862159993,5.92142185,118370.0,118360.0,0.1306084]
[1753862160407,5.92142185,118370.0,118360.0,0.0022084]
[1753862162074,5.97222185,118370.0,118360.0,0.0022084]
[1753862163349,5.50889767,118370.0,118360.0,0.0022084]
[1753862163551,5.97222185,118370.0,118360.0,0.0022084]
[1753862163972,5.98544469,118370.0,118360.0,0.0022084]
[1753862164178,5.97034469,118370.0,118360.0,0.0022084]
[1753862164378,5.99314409,118370.0,118360.0,0.0022084]
[1753862164592,5.76135267,118370.0,118360.0,0.0022084]
[1753862165185,5.74535267,118370.0,118360.0,0.0022084]
[1753862165392,5.51369058,118370.0,118360.0,0.0022084]
[1753862165801,5.74535267,118370.0,118360.0,0.0022084]
[1753862168142,5.74215267,118370.0,118360.0,0.0022084]
[1753862168996,5.97381476,118370.0,118360.0,0.0022084]
[1753862169214,5.97701476,118370.0,118360.0,0.0022084]
[1753862170497,5.9770093,118370.0,118360.0,0.0022084]
[1753862170921,5.51368512,118370.0,118360.0,0.0022084]
[1753862171182,5.9770052,118370.0,118360.0,0.0022084]
[1753862171715,5.74534311,118370.0,118360.0,0.0022084]
[1753862171936,6.0089052,118370.0,118360.0,0.0022084]
[1753862172978,6.00889679,118370.0,118360.0,0.0022084]
[1753862174089,6.00887457,118370.0,118360.0,0.0022084]
[1753862174581,6.02632359,118370.0,118360.0,0.0022084]
[1753862174799,6.00353612,118370.0,118360.0,0.0022084]
[1753862176629,6.00353602,118370.0,118360.0,0.0022084]
[1753862177930,6.04903623,118370.0,118360.0,0.0022084]
[1753862178919,5.58424138,118370.0,118360.0,0.0022084]
[1753862179135,6.0172417,118370.0,118360.0,0.0022084]
[1753862179584,0.00844937,118350.0,118340.0,0.19230999]
[1753862179796,1.28388447,118350.0,118340.0,0.20962999]
[1753862180014,1.30211445,118350.0,118340.0,0.20962999]
[1753862180248,1.32751645,118350.0,118340.0,0.20962999]
[1753862180751,1.09585436,118350.0,118340.0,0.20962999]
[1753862181191,1.32751645,118350.0,118340.0,0.20962999]
[1753862182075,1.32751581,118350.0,118340.0,0.20962999]
[1753862182308,1.12192372,118350.0,118340.0,0.20973999]
[1753862182519,1.37637305,118350.0,118340.0,0.20973999]
[1753862182732,1.35244305,118350.0,118340.0,0.20973999]
[1753862183384,1.37637305,118350.0,118340.0,0.20973999]
[1753862183603,1.37737305,118350.0,118340.0,0.20973999]
[1753862184142,1.14571096,118350.0,118340.0,0.20973999]
[1753862184347,1.51963738,118350.0,118340.0,0.20973999]
[1753862184565,1.51963738,118350.0,118340.0,0.15974]
[1753862184767,1.52163445,118350.0,118340.0,0.20973999]
[1753862186049,1.52163445,118350.0,118340.0,0.15974]
[1753862186267,1.52163445,118350.0,118340.0,0.20973999]
[1753862188692,1.52163445,118350.0,118340.0,0.20669999]
[1753862188962,1.75329654,118350.0,118340.0,0.1152]
[1753862189207,5.66641613,118350.0,118340.0,0.1]
[1753862189662,5.46007179,118350.0,118340.0,0.1]
[1753862189870,5.92339597,118350.0,118340.0,0.1]
[1753862190080,5.69173388,118350.0,118340.0,0.1]
[1753862190290,5.67663388,118350.0,118340.0,0.1]
[1753862191422,5.6531918,118350.0,118340.0,0.1]
[1753862191634,5.98314364,118350.0,118340.0,0.1]
[1753862191854,6.00059266,118350.0,118340.0,0.09153542]
[1753862192071,6.01599266,118350.0,118340.0,0.09153542]
[1753862192300,6.21599266,118350.0,118340.0,0.08307084]
[1753862192525,6.18350291,118350.0,118340.0,0.07460626]
[1753862192747,2.04345192,118350.0,118340.0,0.07460626]
[1753862192964,2.04343768,118350.0,118340.0,0.06614168]
[1753862193185,6.15310568,118350.0,118340.0,0.06614168]
[1753862193408,6.15310568,118350.0,118340.0,0.0576771]
[1753862193409,5.6897815,118350.0,118340.0,0.0576771]
[1753862193861,6.15310568,118350.0,118340.0,0.0576771]
[1753862193863,6.15310568,118350.0,118340.0,0.04921252]
[1753862194083,6.16633135,118350.0,118340.0,0.04921252]
[1753862194292,6.16633135,118350.0,118340.0,0.04074794]
[1753862194493,6.16633135,118350.0,118340.0,0.03228209]
[1753862194867,6.16633135,118350.0,118340.0,0.02381624]
[1753862195276,6.16633135,118350.0,118340.0,0.01535039]
[1753862195457,6.1663227,118350.0,118340.0,0.01535039]
[1753862195657,6.1663227,118350.0,118340.0,0.00688454]
[1753862196236,1.03157882,118340.0,118330.0,5.9185]
[1753862196439,1.27654188,118340.0,118330.0,5.9336]
[1753862196642,1.73986606,118340.0,118330.0,5.95718]
[1753862196873,1.73986606,118340.0,118330.0,5.9593]
[1753862197085,1.75849606,118340.0,118330.0,5.9185]
[1753862197296,1.74279606,118340.0,118330.0,5.9185]
[1753862197546,1.76820206,118340.0,118330.0,5.91864532]
[1753862197753,1.30194788,118340.0,118330.0,5.91864532]
[1753862198172,1.76527206,118340.0,118330.0,5.91864532]
[1753862198403,1.76527206,118340.0,118330.0,5.95722532]
[1753862198634,1.76727206,118340.0,118330.0,5.95722532]
[1753862198876,1.76827206,118340.0,118330.0,5.95722532]
[1753862199109,1.76827206,118340.0,118330.0,5.94222532]
[1753862199355,1.76827206,118340.0,118330.0,5.91864532]
[1753862199787,1.30494788,118340.0,118330.0,5.91864532]
[1753862200055,1.76827206,118340.0,118330.0,5.91864532]
[1753862201053,1.76826956,118340.0,118330.0,5.91864532]
[1753862201337,5.87793756,118340.0,118330.0,5.91864532]
[1753862201566,5.41461338,118340.0,118330.0,5.91864532]
[1753862201796,5.87793756,118340.0,118330.0,5.91864532]
[1753862202391,5.41461338,118340.0,118330.0,5.91864532]
[1753862202616,5.87793756,118340.0,118330.0,5.91864532]
[1753862203021,5.9007248,118340.0,118330.0,5.91864532]
[1753862205130,5.93110779,118340.0,118330.0,5.91864532]
[1753862205318,5.93110779,118340.0,118330.0,5.95832532]
[1753862205514,5.93110779,118340.0,118330.0,5.96044532]
[1753862205747,5.90832055,118340.0,118330.0,5.94434532]
[1753862206306,5.44498721,118340.0,118330.0,5.94434532]
[1753862206592,5.92153823,118340.0,118330.0,5.94434532]
[1753862206711,5.92153823,118340.0,118330.0,5.94738532]
[1753862206912,5.92153823,118340.0,118330.0,5.97928532]
[1753862206913,5.89760823,118340.0,118330.0,5.97928532]
[1753862207131,5.92036199,118340.0,118330.0,5.97928532]
[1753862207338,5.45703781,118340.0,118330.0,5.97928532]
[1753862207560,5.92036199,118340.0,118330.0,5.97928532]
[1753862207776,5.89760823,118340.0,118330.0,5.97928532]
[1753862207988,5.43428405,118340.0,118330.0,5.97928532]
[1753862208194,5.89760823,118340.0,118330.0,5.97928532]
[1753862209056,5.89760904,118340.0,118330.0,5.97928532]
[1753862209477,5.43428486,118340.0,118330.0,5.96278532]
[1753862209685,5.89760904,118340.0,118330.0,5.96278532]
[1753862210313,5.89760904,118340.0,118330.0,5.97868532]
[1753862210530,5.43428486,118340.0,118330.0,5.97868532]
[1753862210750,5.89760904,118340.0,118330.0,5.97868532]
[1753862210951,5.89760904,118340.0,118330.0,6.10832532]
[1753862211807,5.43428928,118340.0,118330.0,6.10832532]
[1753862212022,5.89547346,118340.0,118330.0,6.10832532]
[1753862212258,1.19180357,118340.0,118330.0,6.10832532]
[1753862212470,1.30158574,118340.0,118330.0,6.10832532]
[1753862212949,1.53324783,118340.0,118330.0,6.10832532]
[1753862214286,1.40356783,118340.0,118330.0,6.10832532]
[1753862214698,1.40357644,118340.0,118330.0,6.10832532]
[1753862215492,1.41680245,118340.0,118330.0,6.10832532]
[1753862216351,1.18514036,118340.0,118330.0,6.10832532]
[1753862216675,1.13434036,118340.0,118330.0,6.10832532]
[1753862217006,1.36600245,118340.0,118330.0,6.10832532]
[1753862217450,1.36600555,118340.0,118330.0,6.10832532]
[1753862218037,1.59766764,118340.0,118330.0,6.10832532]
[1753862218272,1.36600555,118340.0,118330.0,6.10832532]
[1753862218501,1.39638854,118340.0,118330.0,6.10832532]
[1753862219368,1.16472645,118340.0,118330.0,6.10832532]
[1753862219567,1.39638854,118340.0,118330.0,6.10832532]
[1753862220352,1.16472645,118340.0,118330.0,6.10832532]
[1753862220605,1.39638854,118340.0,118330.0,6.10832532]
[1753862221246,1.36600555,118340.0,118330.0,6.10832532]
[1753862221670,1.13434346,118340.0,118330.0,6.10832532]
[1753862221853,1.36600555,118340.0,118330.0,6.10832532]
[1753862226207,1.36600555,118340.0,118330.0,6.15832531]
[1753862226208,1.13434346,118340.0,118330.0,6.15832531]
[1753862226414,1.36600555,118340.0,118330.0,6.15832531]
[1753862227658,1.36602532,118340.0,118330.0,6.15832531]
[1753862232444,1.13436323,118340.0,118330.0,6.15832531]
[1753862232674,1.05201911,118340.0,118330.0,6.3899874]
[1753862232894,1.04724311,118340.0,118330.0,6.3899874]
[1753862233317,1.0472435,118340.0,118330.0,6.3899874]
[1753862233728,1.03879349,118340.0,118330.0,6.3899874]
[1753862233948,1.27045558,118340.0,118330.0,6.15832531]
[1753862234154,1.35493288,118340.0,118330.0,6.15832531]
[1753862236107,1.12327079,118340.0,118330.0,6.15832531]
[1753862236321,1.35493288,118340.0,118330.0,6.15832531]
[1753862246652,1.61279497,118340.0,118330.0,6.11368531]
[1753862246924,1.38113288,118340.0,118330.0,6.11368531]
[1753862247489,1.61279497,118340.0,118330.0,6.14025531]
[1753862247663,1.61279497,118340.0,118330.0,6.14323531]
[1753862248259,1.38113288,118340.0,118330.0,6.15863531]
[1753862248915,1.38113288,118340.0,118330.0,6.09828531]
[1753862249115,1.74211497,118340.0,118330.0,6.09828531]
[1753862249234,1.27879079,118340.0,118330.0,6.12283531]
[1753862249625,1.74211497,118340.0,118330.0,6.12283531]
[1753862249833,1.74211497,118340.0,118330.0,6.13903531]
[1753862250342,1.74211497,118340.0,118330.0,6.14105531]
[1753862250583,1.74211497,118340.0,118330.0,6.14403531]
[1753862250803,1.74211497,118340.0,118330.0,6.09403532]
[1753862251021,1.74211497,118340.0,118330.0,6.14403531]
[1753862251461,1.74213277,118340.0,118330.0,6.14403531]
[1753862251689,1.32960859,118340.0,118330.0,6.04796532]
[1753862251859,1.79586277,118340.0,118330.0,6.04792532]
[1753862252260,1.82624576,118340.0,118330.0,6.04792532]
[1753862252514,1.8034884,118340.0,118330.0,6.04792532]